fUSD/lending_fUSD_20260311
["ID","MTS","AMOUNT","RATE_DAILY","PERIOD"]
[408186181,1773193841257,-300.0,0.00019726,2]
[408186182,1773193841267,-300.0,0.00019726,2]
[408186183,1773193841276,-300.0,0.00019726,2]
[408186184,1773193841286,-300.0,0.00019726,2]
[408186185,1773193841310,-300.0,0.00019726,2]
[408186186,1773193841319,-300.0,0.00019726,2]
[408186187,1773193841328,-300.0,0.00019726,2]
[408186188,1773193841338,-300.0,0.00019726,2]
[408186189,1773193841347,-300.0,0.00019726,2]
[408186190,1773193841356,-303.10685583,0.00019726,2]
[408186191,1773193841365,-151.000005,0.00019726,2]
[408186192,1773193841374,-328.104107,0.00019726,2]
[408186193,1773193841383,-328.104107,0.00019726,2]
[408186194,1773193841393,-328.104107,0.00019726,2]
[408186195,1773193841402,-328.104107,0.00019726,2]
[408186196,1773193841411,-2339.44391858,0.00019755,2]
[408186197,1773193841420,-500.0,0.0001978,5]
[408186198,1773193841429,-2339.44391858,0.00019791,2]
[408186199,1773193841438,-2588.60547753,0.0001981,2]
[408186200,1773193841447,-1999.0,0.00019822,2]
[408186201,1773193841456,-2339.44391858,0.00019828,2]
[408186202,1773193841465,-500.0,0.00019834,2]
[408186203,1773193841474,-500.0,0.00019834,2]
[408186204,1773193841484,-570.98990585,0.00019835,5]
[408186205,1773193841493,-1000.0,0.0001985,2]
[408186206,1773193841502,-2339.44391858,0.00019864,2]
[408186207,1773193841516,-500.0,0.00019867,2]
[408186208,1773193841525,-500.0,0.00019867,2]
[408186209,1773193841535,-99792.9420474,0.00019868,2]
[408186210,1773193841544,-151.0,0.00019868,2]
[408186211,1773193841554,-151.0,0.00019868,2]
[408186212,1773193841564,-151.0,0.00019868,2]
[408186213,1773193841573,-151.0,0.00019868,2]
[408186214,1773193841583,-151.0,0.00019868,2]
[408186215,1773193841593,-209.316327,0.00019868,2]
[408186216,1773193841603,-209.316327,0.00019868,2]
[408186217,1773193841613,-209.316327,0.00019868,2]
[408186218,1773193841623,-209.316327,0.00019868,2]
[408186219,1773193841633,-151.0,0.00019868,2]
[408186220,1773193841643,-151.0,0.00019868,2]
[408186221,1773193841653,-151.0,0.00019868,2]
[408186222,1773193841662,-151.0,0.00019868,2]
[408186223,1773193841671,-362.476985,0.00019868,2]
[408186224,1773193841680,-362.476985,0.00019868,2]
[408186225,1773193841690,-362.476985,0.00019868,2]
[408186226,1773193841699,-362.476985,0.00019868,2]
[408186227,1773193841709,-151.0,0.00019868,2]
[408186228,1773193841719,-500.0,0.00019898,2]
[408186229,1773193841728,-500.0,0.00019898,2]
[408186230,1773193841737,-500.0,0.00019898,2]
[408186231,1773193841747,-500.0,0.00019898,2]
[408186232,1773193841756,-500.0,0.00019898,2]
[408186233,1773193841765,-507.80320873,0.00019898,2]
[408186234,1773193841774,-500.0,0.00019898,2]
[408186235,1773193841783,-500.0,0.00019898,2]
[408186236,1773193841793,-500.0,0.00019898,2]
[408186237,1773193841803,-10000.0,0.00019899,2]
[408186238,1773193841812,-500.0,0.00019899,2]
[408186239,1773193841823,-500.0,0.00019899,2]
[408186240,1773193841832,-500.0,0.00019899,2]
[408186241,1773193841841,-500.0,0.00019899,2]
[408186243,1773193841854,-500.0,0.00019899,2]
[408186244,1773193841867,-500.0,0.00019899,2]
[408186245,1773193841876,-500.0,0.00019899,2]
[408186246,1773193841885,-1000.0,0.00019899,2]
[408186247,1773193841894,-1000.0,0.00019899,2]
[408186248,1773193841907,-1000.0,0.00019899,2]
[408186249,1773193841918,-500.0,0.00019899,2]
[408186250,1773193841930,-1000.0,0.000199,2]
[408186251,1773193841940,-32938.1023,0.000199,2]
[408186252,1773193841949,-500.0,0.000199,2]
[408186253,1773193841959,-500.0,0.000199,2]
[408186254,1773193841968,-500.0,0.000199,2]
[408186255,1773193841978,-337.53416247,0.000199,2]
[408186256,1773193841988,-4051.5636668,0.000199,2]
[408186257,1773193841997,-2339.44391858,0.000199,2]
[408186258,1773193842007,-204.30932807,0.000199,2]
[408186259,1773193842016,-312.24658437,0.000199,2]
[408186260,1773193842026,-251.86409613,0.000199,2]
[408186261,1773193842035,-197.70766094,0.000199,3]
[408186262,1773193842044,-328.104107,0.000199,2]
[408186263,1773193842054,-328.104107,0.000199,2]
[408186264,1773193842063,-4935.01066749,0.000199,2]
[408186265,1773193842073,-328.104107,0.000199,2]
[408186266,1773193842083,-328.104107,0.000199,2]
[408186267,1773193842092,-628.6812196,0.000199,2]
[408186268,1773193842101,-12075.41488021,0.000199,2]
[408186269,1773193842111,-2378.0,0.000199,2]
[408186270,1773193842121,-339.0,0.00019925,2]
[408186271,1773193842130,-152.90665268,0.0001994,2]
[408186272,1773193842140,-1000.0,0.00019953,2]
[408186273,1773193842149,-1000.0,0.00019963,2]
[408186274,1773193842158,-186.29829342,0.0001999,2]
[408186275,1773193842168,-186.29829342,0.0001999,2]
[408186276,1773193842177,-217.24219,0.00019995,2]
[408186277,1773193842186,-527.47030383,0.00019998,2]
[408186278,1773193842195,-500.0,0.00019998,2]
[408186279,1773193842205,-204.07600257,0.00019999,5]
[408186280,1773193842215,-1090.54690258,0.00019999,5]
[408186281,1773193842225,-500.0,0.00019999,2]
[408186282,1773193842234,-500.0,0.00019999,2]
[408186283,1773193842243,-500.0,0.00019999,2]
[408186284,1773193842253,-500.0,0.00019999,2]
[408186285,1773193842262,-500.0,0.00019999,2]
[408186286,1773193842272,-500.0,0.00019999,2]
[408186287,1773193842284,-506.32926117,0.00019999,2]
[408186288,1773193842299,-500.0,0.00019999,2]
[408186289,1773193842308,-500.0,0.00019999,2]
[408186290,1773193842318,-500.789707,0.00019999,2]
[408186291,1773193842327,-500.0,0.00019999,2]
[408186292,1773193842336,-314.42910771,0.00019999,2]
[408186293,1773193842345,-500.0,0.00019999,2]
[408186294,1773193842354,-500.0,0.00019999,2]
[408186295,1773193842363,-500.0,0.00019999,2]
[408186296,1773193842372,-500.0,0.00019999,2]
[408186297,1773193842382,-500.0,0.00019999,2]
[408186298,1773193842391,-500.0,0.00019999,2]
[408186299,1773193842400,-500.0,0.00019999,2]
[408186300,1773193842409,-500.0,0.00019999,2]
[408186301,1773193842419,-507.50732285,0.00019999,2]
[408186302,1773193842429,-500.0,0.00019999,2]
[408186303,1773193842438,-500.0,0.00019999,2]
[408186304,1773193842447,-610.63586065,0.00019999,2]
[408186305,1773193842457,-507.53424196,0.00019999,2]
[408186306,1773193842467,-500.0,0.00019999,2]
[408186307,1773193842476,-500.0,0.00019999,2]
[408186308,1773193842485,-500.0,0.00019999,2]
[408186309,1773193842494,-500.0,0.00019999,2]
[408186310,1773193842503,-500.0,0.00019999,2]
[408186311,1773193842511,-500.0,0.00019999,2]
[408186312,1773193842521,-500.0,0.00019999,2]
[408186313,1773193842531,-510.41061214,0.00019999,2]
[408186314,1773193842541,-500.0,0.00019999,2]
[408186315,1773193842551,-506.63695301,0.00019999,2]
[408186316,1773193842561,-500.0,0.00019999,2]
[408186317,1773193842570,-500.0,0.00019999,2]
[408186318,1773193842580,-633.31906967,0.00019999,2]
[408186319,1773193842589,-500.0,0.00019999,2]
[408186320,1773193842599,-500.0,0.00019999,2]
[408186321,1773193842608,-500.0,0.00019999,2]
[408186322,1773193842617,-500.0,0.00019999,2]
[408186323,1773193842627,-500.0,0.00019999,2]
[408186324,1773193842637,-500.0,0.00019999,2]
[408186325,1773193842646,-515.12356361,0.00019999,2]
[408186326,1773193842655,-500.0,0.00019999,2]
[408186327,1773193842665,-500.0,0.00019999,2]
[408186328,1773193842675,-500.0,0.00019999,2]
[408186329,1773193842684,-500.0,0.00019999,2]
[408186330,1773193842693,-530.47109549,0.00019999,2]
[408186331,1773193842702,-350.0,0.00019999,2]
[408186332,1773193842712,-350.0,0.00019999,2]
[408186333,1773193842722,-304.43194707,0.00019999,2]
[408186334,1773193842731,-500.0,0.00019999,2]
[408186335,1773193842740,-500.0,0.00019999,2]
[408186336,1773193842749,-500.0,0.00019999,2]
[408186337,1773193842758,-500.0,0.00019999,2]
[408186338,1773193842767,-502.06591297,0.00019999,2]
[408186339,1773193842777,-257.61241438,0.00019999,2]
[408186340,1773193842786,-500.0,0.00019999,2]
[408186341,1773193842795,-500.0,0.00019999,2]
[408186342,1773193842804,-500.0,0.00019999,2]
[408186343,1773193842813,-500.0,0.00019999,2]
[408186344,1773193842822,-500.0,0.00019999,2]
[408186345,1773193842831,-500.0,0.00019999,2]
[408186346,1773193842840,-500.0,0.00019999,2]
[408186347,1773193842851,-500.0,0.00019999,2]
[408186348,1773193842865,-500.0,0.00019999,2]
[408186349,1773193842874,-500.0,0.00019999,2]
[408186350,1773193842883,-301.87454331,0.00019999,2]
[408186351,1773193842893,-500.0,0.00019999,2]
[408186352,1773193842902,-500.0,0.00019999,2]
[408186353,1773193842912,-500.0,0.00019999,2]
[408186354,1773193842921,-500.0,0.00019999,2]
[408186355,1773193842932,-500.0,0.00019999,2]
[408186356,1773193842941,-500.0,0.00019999,2]
[408186357,1773193842950,-500.0,0.00019999,2]
[408186358,1773193842960,-500.0,0.00019999,2]
[408186359,1773193842970,-500.0,0.00019999,2]
[408186360,1773193842980,-500.0,0.00019999,2]
[408186361,1773193842990,-256.31635303,0.00019999,2]
[408186362,1773193842999,-500.0,0.00019999,2]
[408186363,1773193843009,-514.68332099,0.00019999,2]
[408186364,1773193843019,-196.75738103,0.00019999,2]
[408186365,1773193843028,-500.0,0.00019999,2]
[408186366,1773193843037,-500.0,0.00019999,2]
[408186367,1773193843050,-554.34014391,0.00019999,2]
[408186368,1773193843060,-500.0,0.00019999,2]
[408186369,1773193843069,-510.12107787,0.00019999,2]
[408186370,1773193843078,-500.0,0.00019999,2]
[408186372,1773193843087,-500.0,0.00019999,2]
[408186374,1773193843096,-539.6122178,0.00019999,2]
[408186375,1773193843106,-500.0,0.00019999,2]
[408186376,1773193843115,-500.0,0.00019999,2]
[408186377,1773193843123,-500.0,0.00019999,2]
[408186378,1773193843132,-502.71493075,0.00019999,2]
[408186379,1773193843142,-500.0,0.00019999,2]
[408186380,1773193843151,-500.0,0.00019999,2]
[408186381,1773193843160,-500.0,0.00019999,2]
[408186382,1773193843169,-500.0,0.00019999,2]
[408186383,1773193843178,-500.0,0.00019999,2]
[408186384,1773193843187,-502.25944684,0.00019999,2]
[408186385,1773193843197,-500.0,0.00019999,2]
[408186386,1773193843206,-500.0,0.00019999,2]
[408186387,1773193843215,-500.0,0.00019999,2]
[408186388,1773193843225,-500.0,0.00019999,2]
[408186389,1773193843234,-500.0,0.00019999,2]
[408186390,1773193843243,-500.0,0.00019999,2]
[408186391,1773193843252,-500.0,0.00019999,2]
[408186392,1773193843261,-583.8453258,0.00019999,2]
[408186393,1773193843270,-151.0,0.00019999,2]
[408186394,1773193843279,-151.0,0.00019999,2]
[408186395,1773193843288,-151.0,0.00019999,2]
[408186396,1773193843297,-151.0,0.00019999,2]
[408186397,1773193843306,-151.0,0.00019999,2]
[408186398,1773193843316,-209.316327,0.00019999,2]
[408186399,1773193843325,-209.316327,0.00019999,2]
[408186400,1773193843334,-209.316327,0.00019999,2]
[408186401,1773193843343,-209.316327,0.00019999,2]
[408186402,1773193843351,-151.0,0.00019999,2]
[408186403,1773193843360,-151.0,0.00019999,2]
[408186404,1773193843370,-151.0,0.00019999,2]
[408186405,1773193843379,-191.721519,0.00019999,2]
[408186406,1773193843388,-362.476985,0.00019999,2]
[408186407,1773193843397,-362.476985,0.00019999,2]
[408186408,1773193843406,-362.476985,0.00019999,2]
[408186409,1773193843415,-362.476985,0.00019999,2]
[408186410,1773193843424,-3000.0,0.00019999,2]
[408186411,1773193843433,-3000.0,0.00019999,2]
[408186412,1773193843442,-3000.0,0.00019999,2]
[408186413,1773193843451,-3000.0,0.00019999,2]
[408186414,1773193843461,-3000.0,0.00019999,2]
[408186415,1773193843470,-3000.0,0.00019999,2]
[408186416,1773193843479,-3000.0,0.00019999,2]
[408186417,1773193843488,-3000.0,0.00019999,2]
[408186418,1773193843497,-3000.0,0.00019999,2]
[408186419,1773193843506,-3000.0,0.00019999,2]
[408186420,1773193843515,-3000.0,0.00019999,2]
[408186421,1773193843524,-3000.0,0.00019999,2]
[408186422,1773193843533,-3000.0,0.00019999,2]
[408186423,1773193843542,-3000.0,0.00019999,2]
[408186424,1773193843551,-3000.0,0.00019999,2]
[408186425,1773193843560,-3000.0,0.00019999,2]
[408186426,1773193843570,-981.54307946,0.00019999,2]
[408186427,1773193843578,-151.0,0.00019999,2]
[408186428,1773193843588,-247.41680921,0.00019999,2]
[408186429,1773193843596,-173.19176644,0.00019999,2]
[408186430,1773193843605,-497.54851527,0.00019999,2]
[408186431,1773193843615,-438.01500328,0.00019999,2]
[408186432,1773193843625,-2962.0,0.0002,2]
[408186433,1773193843634,-86308.06027163,0.0002,2]
[408186435,1773193843671,-151.0,0.00019868,2]
[408186437,1773193843680,-145.12946664,0.00019999,2]
[408186438,1773193843698,-19.32748536,0.00019999,2]
[408186439,1773193843707,-397971.75476281,0.0002,2]
[408186440,1773193843784,-355.28260787,0.0002,2]
[408186441,1773193843840,-48.31256143,0.0002,2]
[408186442,1773193846070,-151.0,0.00019868,2]
[408186444,1773193846080,-151.0,0.00019999,2]
[408186445,1773193846089,-4599.15109411,0.0002,2]
[408186448,1773194036552,-8350.0,0.00014265,2]
[408186450,1773194353296,186.0,0.0002,120]
[408186451,1773194394012,5000.01,0.0001199,2]
[408186452,1773194394033,5000.01,0.0001199,2]
[408186453,1773194394054,5000.01,0.0001199,2]
[408186454,1773194394077,3212.02647571,0.0001199,2]
[408186456,1773194542101,489.0,0.0002,120]
[408186457,1773194547116,500.0,8.6e-05,2]
[408186458,1773194547596,500.0,8.6e-05,2]
[408186459,1773194548128,521.74696389,8.6e-05,2]
[408186460,1773194837116,500.0,8.6e-05,2]
[408186461,1773194838113,500.0,8.6e-05,2]
[408186462,1773194885675,-1765.84574859,0.00014246,2]
[408186463,1773194885701,-558.83561415,0.00014246,2]
[408186464,1773194885725,-268.0,0.00014246,2]
[408186465,1773194885751,-1200.0,0.00014264,2]
[408186466,1773194885776,-150.0,0.00014264,2]
[408186467,1773194885803,-20643.31863726,0.00014265,2]
[408186476,1773195031362,-1002.24584653,0.00014264,2]
[408186477,1773195031371,-150.0,0.00014264,2]
[408186478,1773195031381,-1200.0,0.00014264,2]
[408186479,1773195031390,-268.0,0.00014264,2]
[408186480,1773195031399,-17209.51485082,0.00014265,2]
[408186481,1773195031417,-46772.42801192,0.00014265,2]
[408186482,1773195031426,-158.0,0.00014265,3]
[408186483,1773195031436,-4243.85332309,0.0001439,2]
[408186484,1773195031445,-177.035401,0.00014984,7]
[408186485,1773195031455,-168.0,0.00015,5]
[408186486,1773195031464,-500.0,0.00015,30]
[408186488,1773195031473,-500.0,0.00015,30]
[408186489,1773195031483,-500.0,0.00015,30]
[408186490,1773195031492,-500.0,0.00015,30]
[408186491,1773195031502,-500.0,0.00015,30]
[408186492,1773195031513,-500.0,0.00015,30]
[408186493,1773195031522,-514.8086731,0.00015,30]
[408186495,1773195031531,-500.0,0.00015,30]
[408186497,1773195031540,-500.0,0.00015,30]
[408186498,1773195031549,-500.0,0.00015,30]
[408186499,1773195031558,-501.56694293,0.00015,30]
[408186500,1773195031567,-506.55607891,0.00015,30]
[408186501,1773195031576,-508.78295767,0.00015,30]
[408186502,1773195031585,-500.0,0.000151,2]
[408186503,1773195031595,-500.59506697,0.000151,2]
[408186504,1773195031604,-500.0,0.000151,2]
[408186505,1773195031614,-255.0,0.0001539,2]
[408186506,1773195031623,-7936.98834778,0.0001555,2]
[408186507,1773195031634,-2063.00165222,0.0001555,2]
[408186508,1773195031643,-150.99,0.00015622,2]
[408186509,1773195031652,-4194.90182185,0.00015622,2]
[408186520,1773195037487,-1119.44817815,0.00015622,2]
[408186521,1773195037496,-500.0,0.00015648,2]
[408186522,1773195037507,-501.50731997,0.00015648,2]
[408186523,1773195037517,-600.0,0.0001569,2]
[408186524,1773195037526,-1680.0,0.0001569,2]
[408186525,1773195037535,-5000.00827663,0.000162,5]
[408186526,1773195037545,-162.0,0.000162,2]
[408186527,1773195037554,-164.0,0.000162,2]
[408186528,1773195037563,-283.0,0.00016603,2]
[408186529,1773195037572,-500.0,0.00016764,2]
[408186530,1773195037581,-500.0,0.00016764,2]
[408186531,1773195037590,-500.0,0.00016764,2]
[408186532,1773195037599,-500.0,0.00016764,2]
[408186533,1773195037608,-500.0,0.00016764,2]
[408186534,1773195037617,-500.0,0.00016764,2]
[408186535,1773195037626,-500.0,0.00016764,2]
[408186536,1773195037637,-500.0,0.00016764,2]
[408186538,1773195037646,-3240.0,0.00016809,2]
[408186539,1773195037655,-7396.69113848,0.00017,2]
[408186540,1773195037664,-502.0,0.00017,2]
[408186541,1773195037674,-4728.87848728,0.0001701,2]
[408186542,1773195037684,-506.34018222,0.00017073,2]
[408186543,1773195037694,-167.23452348,0.00017073,2]
[408186545,1773195037703,-500.0,0.00017099,2]
[408186547,1773195037712,-500.0,0.00017099,2]
[408186549,1773195037722,-500.0,0.00017099,2]
[408186551,1773195037731,-500.0,0.00017099,2]
[408186553,1773195037739,-500.0,0.00017099,2]
[408186555,1773195037749,-500.0,0.00017099,2]
[408186556,1773195037759,-500.0,0.00017099,2]
[408186557,1773195037769,-500.0,0.00017099,2]
[408186558,1773195037780,-500.0,0.00017099,2]
[408186559,1773195037792,-500.0,0.00017099,2]
[408186560,1773195037803,-500.0,0.00017099,2]
[408186561,1773195037811,-500.0,0.00017099,2]
[408186562,1773195037821,-500.0,0.00017099,2]
[408186563,1773195037832,-500.0,0.00017099,2]
[408186564,1773195037842,-500.0,0.00017099,2]
[408186565,1773195037852,-289.82130996,0.00017099,2]
[408186566,1773195037862,-307.36655284,0.00017099,2]
[408186567,1773195037871,-54257.45528292,0.000171,2]
[408186568,1773195037881,-10971.29428194,0.0001711,2]
[408186569,1773195037891,-1151.0,0.00017259,2]
[408186570,1773195037900,-4728.87848725,0.00017331,2]
[408186571,1773195037910,-150.0,0.00017534,2]
[408186572,1773195037919,-150.0,0.00017534,2]
[408186573,1773195037929,-185.51311289,0.00017589,2]
[408186574,1773195037938,-242.13396594,0.00017589,2]
[408186575,1773195037947,-4728.87848725,0.00017652,2]
[408186576,1773195037957,-701.45818653,0.000177,2]
[408186577,1773195037966,-162.0,0.000177,2]
[408186578,1773195037976,-500.0,0.00017725,2]
[408186579,1773195037986,-252.392087,0.00017725,2]
[408186580,1773195037995,-500.0,0.00017725,2]
[408186581,1773195038004,-500.0,0.0001778,2]
[408186582,1773195038014,-500.0,0.0001778,2]
[408186583,1773195038024,-300.0,0.00017808,2]
[408186584,1773195038034,-300.0,0.00017808,2]
[408186585,1773195038044,-300.0,0.00017808,2]
[408186586,1773195038053,-800.9737091,0.00017808,2]
[408186587,1773195038062,-570.98990585,0.00017835,2]
[408186588,1773195038071,-392.97136106,0.00017835,2]
[408186589,1773195038080,-1007.29218035,0.0001786,2]
[408186590,1773195038092,-1229.03787992,0.0001789,2]
[408186591,1773195038102,-1076.97554217,0.0001789,2]
[408186592,1773195038111,-534.3228567,0.000179,2]
[408186593,1773195038121,-4728.87848725,0.00017973,2]
[408186594,1773195038132,-202.33,0.00017982,2]
[408186595,1773195038142,-7201.42441341,0.0001799,2]
[408186596,1773195038152,-9731.36429166,0.00018,5]
[408186597,1773195038164,-65611.67887382,0.00018,2]
[408186598,1773195038174,-1033.92764543,0.00018,2]
[408186599,1773195038183,-308.85729737,0.00018,2]
[408186600,1773195038192,-1003.1755031,0.00018,2]
[408186601,1773195038202,-6163.82,0.00018181,2]
[408186602,1773195038211,-4728.87848725,0.00018294,2]
[408186603,1773195038220,-848.0,0.000184,2]
[408186604,1773195038229,-3108.77,0.00018539,2]
[408186605,1773195038239,-5875.45,0.00018558,2]
[408186606,1773195038249,-485.24,0.0001859,2]
[408186607,1773195038263,-956.7107676,0.00018609,2]
[408186608,1773195038273,-4728.87848725,0.00018616,2]
[408186609,1773195038282,-10112.14445066,0.000187,2]
[408186610,1773195038291,-161.0,0.0001872,2]
[408186611,1773195038301,-162.0,0.0001872,2]
[408186612,1773195038311,-2805.0,0.0001872,2]
[408186613,1773195038320,-1444.63,0.00018801,2]
[408186614,1773195038331,-177.58,0.00018807,2]
[408186615,1773195038341,-250.0,0.00018847,2]
[408186616,1773195038350,-485.24,0.00018864,2]
[408186617,1773195038359,-500.0,0.00018892,2]
[408186618,1773195038368,-4728.87848725,0.00018937,2]
[408186619,1773195038378,-500.0,0.00018999,2]
[408186620,1773195038387,-4190.0,0.00019,2]
[408186621,1773195038396,-21937.79823114,0.00019,2]
[408186622,1773195038405,-475.22757974,0.00019,5]
[408186623,1773195038414,-3108.77,0.00019003,2]
[408186624,1773195038423,-1005.0,0.0001904,2]
[408186625,1773195038432,-307.0,0.0001904,2]
[408186626,1773195038442,-500.0,0.00019054,2]
[408186627,1773195038451,-500.0,0.00019109,2]
[408186628,1773195038460,-485.24,0.00019138,2]
[408186629,1773195038469,-500.0,0.00019164,2]
[408186630,1773195038479,-150.14636363,0.00019178,2]
[408186631,1773195038489,-500.0,0.00019219,2]
[408186632,1773195038499,-4728.87848725,0.00019258,2]
[408186633,1773195038508,-500.0,0.00019274,2]
[408186634,1773195038518,-1000.0,0.00019274,2]
[408186635,1773195038527,-500.0,0.00019329,2]
[408186636,1773195038536,-2807.0,0.0001936,2]
[408186637,1773195038545,-161.0,0.0001936,2]
[408186638,1773195038555,-500.0,0.00019384,2]
[408186639,1773195038564,-485.24,0.00019412,2]
[408186640,1773195038573,-500.0,0.00019439,2]
[408186641,1773195038583,-2500.0,0.00019461,2]
[408186642,1773195038592,-3108.77,0.00019466,2]
[408186643,1773195038601,-339.0,0.00019479,2]
[408186644,1773195038610,-500.0,0.00019494,2]
[408186645,1773195038619,-2000.0,0.000195,2]
[408186646,1773195038629,-5625.10591086,0.000195,3]
[408186647,1773195038638,-1000.0,0.00019548,2]
[408186648,1773195038647,-500.0,0.00019549,2]
[408186649,1773195038656,-275.17021168,0.00019561,5]
[408186650,1773195038665,-250.58262965,0.00019561,5]
[408186651,1773195038674,-205.57005763,0.00019561,5]
[408186652,1773195038684,-500.0,0.00019561,5]
[408186653,1773195038693,-500.0,0.00019561,5]
[408186654,1773195038703,-500.0,0.00019561,5]
[408186655,1773195038712,-500.0,0.00019561,2]
[408186656,1773195038722,-500.0,0.00019561,5]
[408186657,1773195038731,-150.0,0.00019561,5]
[408186658,1773195038740,-200.54971952,0.00019561,5]
[408186659,1773195038749,-150.0,0.00019561,5]
[408186660,1773195038758,-500.0,0.00019561,5]
[408186661,1773195038768,-500.0,0.00019561,5]
[408186662,1773195038778,-4728.87848725,0.00019579,2]
[408186663,1773195038787,-1030.2616553,0.000196,2]
[408186664,1773195038796,-1002.53669412,0.000196,2]
[408186665,1773195038806,-1096.38309346,0.000196,2]
[408186666,1773195038815,-1088.19549001,0.000196,2]
[408186667,1773195038824,-1018.05247026,0.000196,2]
[408186668,1773195038834,-1052.02962633,0.000196,2]
[408186669,1773195038844,-1058.59187191,0.000196,2]
[408186670,1773195038853,-1071.9437467,0.000196,2]
[408186671,1773195038863,-1080.81482522,0.000196,2]
[408186672,1773195038872,-1131.96002356,0.000196,2]
[408186673,1773195038882,-1031.65126399,0.000196,2]
[408186674,1773195038891,-1107.21115883,0.000196,2]
[408186675,1773195038901,-1059.7589807,0.000196,2]
[408186676,1773195038911,-1089.04260927,0.000196,2]
[408186677,1773195038920,-1087.54456874,0.000196,2]
[408186678,1773195038930,-1148.61807377,0.000196,2]
[408186679,1773195038941,-1009.08349357,0.000196,2]
[408186680,1773195038951,-1144.08453703,0.000196,2]
[408186681,1773195038961,-1040.03913526,0.000196,2]
[408186682,1773195038971,-1018.41797554,0.000196,2]
[408186683,1773195038980,-1087.38869274,0.000196,2]
[408186684,1773195038990,-1027.61074515,0.000196,2]
[408186685,1773195039000,-1069.39200915,0.000196,2]
[408186686,1773195039009,-1097.67560576,0.000196,2]
[408186687,1773195039019,-1092.61302864,0.000196,2]
[408186688,1773195039029,-1061.44196832,0.000196,2]
[408186689,1773195039039,-1144.14174531,0.000196,2]
[408186690,1773195039049,-1029.94020516,0.000196,2]
[408186691,1773195039058,-1036.8639716,0.000196,2]
[408186692,1773195039067,-1000.84816532,0.000196,2]
[408186693,1773195039077,-1073.44168832,0.000196,2]
[408186694,1773195039086,-1065.68413349,0.000196,2]
[408186695,1773195039095,-1096.30342404,0.000196,2]
[408186697,1773195039105,-1049.80405162,0.000196,2]
[408186698,1773195039115,-1528.44236827,0.000196,2]
[408186699,1773195039124,-292.37,0.000196,30]
[408186700,1773195039133,-283.32010552,0.000196,2]
[408186701,1773195039143,-500.0,0.00019604,2]
[408186702,1773195039153,-500.0,0.00019616,5]
[408186703,1773195039163,-500.0,0.00019616,5]
[408186704,1773195039171,-500.0,0.00019616,5]
[408186705,1773195039181,-500.0,0.00019616,2]
[408186706,1773195039190,-500.0,0.00019616,5]
[408186707,1773195039199,-150.0,0.00019616,5]
[408186708,1773195039209,-151.04601421,0.00019616,5]
[408186709,1773195039218,-500.0,0.00019616,5]
[408186710,1773195039227,-500.0,0.00019616,5]
[408186711,1773195039236,-168.0,0.0001966,2]
[408186712,1773195039245,-510.77564098,0.00019671,5]
[408186713,1773195039257,-500.0,0.00019671,5]
[408186714,1773195039267,-401.99957865,0.00019671,5]
[408186715,1773195039276,-500.0,0.00019671,2]
[408186716,1773195039285,-261.47135682,0.00019671,5]
[408186717,1773195039295,-150.0,0.00019671,5]
[408186718,1773195039305,-204.90199074,0.00019671,5]
[408186719,1773195039314,-500.0,0.00019671,5]